fUSD/lending_fUSD_20240718
["ID","MTS","AMOUNT","RATE_DAILY","PERIOD"]
[332501940,1721278255131,-500.0,0.00021917,2]
[332501941,1721278255142,-505.49669982,0.00021917,2]
[332501942,1721278255152,-510.88269692,0.00021917,2]
[332501943,1721278255162,-576.51,0.00021917,2]
[332501944,1721278255172,-500.0,0.00021917,2]
[332501945,1721278255182,-500.0,0.00021917,2]
[332501946,1721278255192,-640.95,0.00021917,2]
[332501947,1721278255202,-500.0,0.00021917,2]
[332501948,1721278255212,-500.0,0.00021917,2]
[332501949,1721278255223,-2551.4,0.00021917,2]
[332501950,1721278255235,-500.0,0.00021917,2]
[332501951,1721278255246,-660.07,0.00021917,2]
[332501952,1721278255256,-500.0,0.00021917,2]
[332501953,1721278255266,-724.54,0.00021917,2]
[332501954,1721278255277,-830.24,0.00021917,2]
[332501955,1721278255287,-500.0,0.00021917,2]
[332501956,1721278255296,-521.48,0.00021917,2]
[332501957,1721278255306,-523.95,0.00021917,2]
[332501958,1721278255317,-500.0,0.00021917,2]
[332501959,1721278255327,-500.0,0.00021917,2]
[332501960,1721278255337,-500.0,0.00021917,2]
[332501961,1721278255346,-500.0,0.00021917,2]
[332501962,1721278255357,-500.0,0.00021917,2]
[332501963,1721278255367,-500.0,0.00021917,2]
[332501964,1721278255376,-500.0,0.00021917,2]
[332501965,1721278255388,-500.0,0.00021917,2]
[332501966,1721278255399,-158.933656,0.00021917,2]
[332501967,1721278255408,-500.0,0.00021917,2]
[332501968,1721278255418,-500.0,0.00021917,2]
[332501969,1721278255427,-1771.83,0.00021917,2]
[332501970,1721278255437,-832.84,0.00021917,2]
[332501971,1721278255446,-500.0,0.00021917,2]
[332501972,1721278255455,-500.0,0.00021917,2]
[332501973,1721278255465,-1864.33,0.00021917,2]
[332501974,1721278255474,-500.0,0.00021917,2]
[332501975,1721278255483,-151.0,0.00021917,2]
[332501976,1721278255493,-663.525383,0.00021917,2]
[332501977,1721278255502,-500.0,0.00021917,2]
[332501978,1721278255511,-500.0,0.00021917,2]
[332501979,1721278255520,-827.36,0.00021917,2]
[332501980,1721278255530,-500.0,0.00021917,2]
[332501981,1721278255541,-500.0,0.00021917,2]
[332501982,1721278255550,-500.0,0.00021917,2]
[332501983,1721278255559,-158.933656,0.00021917,2]
[332501984,1721278255569,-500.0,0.00021917,2]
[332501985,1721278255579,-660.97,0.00021917,2]
[332501986,1721278255588,-500.0,0.00021917,2]
[332501987,1721278255598,-1084.09,0.00021917,2]
[332501988,1721278255607,-500.0,0.00021917,2]
[332501989,1721278255616,-500.0,0.00021917,2]
[332501990,1721278255625,-500.0,0.00021917,2]
[332501991,1721278255635,-500.0,0.00021917,2]
[332501992,1721278255644,-790.22,0.00021917,2]
[332501993,1721278255654,-500.0,0.00021917,2]
[332501994,1721278255663,-500.0,0.00021917,2]
[332501995,1721278255673,-179.04,0.00021917,2]
[332501996,1721278255682,-151.0,0.00021917,2]
[332501997,1721278255691,-663.525383,0.00021917,2]
[332501998,1721278255701,-690.37,0.00021917,2]
[332501999,1721278255710,-278.692934,0.00021917,2]
[332502000,1721278255720,-500.0,0.00021917,2]
[332502001,1721278255729,-500.0,0.00021917,2]
[332502002,1721278255739,-500.0,0.00021917,2]
[332502003,1721278255748,-500.0,0.00021917,2]
[332502004,1721278255759,-500.0,0.00021917,2]
[332502005,1721278255769,-1069.06,0.00021917,2]
[332502006,1721278255778,-850.78,0.00021917,2]
[332502007,1721278255787,-500.0,0.00021917,2]
[332502008,1721278255797,-625.18,0.00021917,2]
[332502009,1721278255806,-500.0,0.00021917,2]
[332502010,1721278255816,-821.43,0.00021917,2]
[332502011,1721278255826,-531.93,0.00021917,2]
[332502012,1721278255836,-500.0,0.00021917,2]
[332502013,1721278255845,-500.0,0.00021917,2]
[332502014,1721278255855,-835.04,0.00021917,2]
[332502015,1721278255865,-500.0,0.00021917,2]
[332502016,1721278255874,-1014.65,0.00021917,2]
[332502017,1721278255884,-284.0,0.00021917,2]
[332502018,1721278255894,-500.0,0.00021917,2]
[332502019,1721278255905,-1687.7,0.00021917,2]
[332502020,1721278255915,-500.0,0.00021917,2]
[332502021,1721278255924,-500.0,0.00021917,2]
[332502022,1721278255934,-500.0,0.00021917,2]
[332502023,1721278255944,-500.0,0.00021917,2]
[332502024,1721278255954,-450.700224,0.00021917,2]
[332502025,1721278255963,-151.0,0.00021917,2]
[332502026,1721278255972,-500.0,0.00021917,2]
[332502027,1721278255981,-1534.11,0.00021917,2]
[332502028,1721278255991,-500.0,0.00021917,2]
[332502029,1721278256000,-500.0,0.00021917,2]
[332502030,1721278256009,-500.0,0.00021917,2]
[332502031,1721278256018,-2696.799558,0.00021917,2]
[332502032,1721278256028,-500.0,0.00021917,2]
[332502033,1721278256041,-693.0,0.00021917,2]
[332502034,1721278256051,-500.0,0.00021917,2]
[332502035,1721278256061,-450.700224,0.00021917,2]
[332502036,1721278256069,-500.0,0.00021917,2]
[332502037,1721278256081,-500.0,0.00021917,2]
[332502038,1721278256091,-316.74729621,0.00021917,2]
[332502039,1721278256100,-500.0,0.00021917,2]
[332502040,1721278256110,-500.0,0.00021917,2]
[332502041,1721278256121,-691.63,0.00021917,2]
[332502042,1721278256131,-2696.799558,0.00021917,2]
[332502043,1721278256141,-500.0,0.00021917,2]
[332502044,1721278256150,-500.0,0.00021917,2]
[332502045,1721278256160,-500.0,0.00021917,2]
[332502046,1721278256170,-452.6523721,0.00021917,2]
[332502047,1721278256180,-606.52,0.00021917,2]
[332502048,1721278256190,-500.0,0.00021917,2]
[332502049,1721278256199,-602.58,0.00021917,2]
[332502050,1721278256209,-500.0,0.00021917,2]
[332502051,1721278256218,-500.0,0.00021917,2]
[332502052,1721278256227,-500.0,0.00021917,2]
[332502053,1721278256237,-151.0,0.00021917,2]
[332502054,1721278256246,-500.0,0.00021917,2]
[332502055,1721278256255,-500.0,0.00021917,2]
[332502056,1721278256265,-151.0,0.00021917,2]
[332502057,1721278256274,-568.80702598,0.00021917,2]
[332502058,1721278256284,-793.77,0.00021917,2]
[332502059,1721278256293,-418.828348,0.00021917,2]
[332502060,1721278256303,-500.0,0.00021917,2]
[332502061,1721278256312,-514.69,0.00021917,2]
[332502062,1721278256322,-1216.98,0.00021917,2]
[332502063,1721278256334,-500.0,0.00021917,2]
[332502064,1721278256343,-500.92619992,0.00021917,2]
[332502065,1721278256353,-678.38,0.00021917,2]
[332502066,1721278256364,-2005.3,0.00021917,2]
[332502067,1721278256373,-500.0,0.00021917,2]
[332502068,1721278256382,-500.0,0.00021917,2]
[332502069,1721278256391,-500.0,0.00021917,2]
[332502070,1721278256401,-418.828348,0.00021917,2]
[332502071,1721278256411,-500.0,0.00021917,2]
[332502072,1721278256421,-500.0,0.00021917,2]
[332502073,1721278256430,-500.0,0.00021917,2]
[332502074,1721278256440,-1929.61,0.00021917,2]
[332502075,1721278256449,-500.0,0.00021917,2]
[332502076,1721278256459,-500.0,0.00021917,2]
[332502077,1721278256469,-500.0,0.00021917,2]
[332502078,1721278256478,-1580.89,0.00021917,2]
[332502079,1721278256488,-1243.02,0.00021917,2]
[332502080,1721278256497,-500.0,0.00021917,2]
[332502081,1721278256507,-622.91,0.00021917,2]
[332502082,1721278256517,-500.0,0.00021917,2]
[332502083,1721278256526,-500.0,0.00021917,2]
[332502084,1721278256536,-707.3,0.00021917,2]
[332502085,1721278256545,-1663.83,0.00021917,2]
[332502086,1721278256555,-151.0,0.00021917,2]
[332502087,1721278256565,-1060.24,0.00021917,2]
[332502088,1721278256574,-500.0,0.00021917,2]
[332502089,1721278256585,-500.0,0.00021917,2]
[332502090,1721278256594,-500.0,0.00021917,2]
[332502091,1721278256604,-500.0,0.00021917,2]
[332502092,1721278256613,-1036.78,0.00021917,2]
[332502093,1721278256622,-958.75,0.00021917,2]
[332502094,1721278256631,-151.0,0.00021917,2]
[332502095,1721278256641,-151.0,0.00021917,2]
[332502096,1721278256650,-500.0,0.00021917,2]
[332502097,1721278256659,-500.0,0.00021917,2]
[332502098,1721278256668,-151.0,0.00021917,2]
[332502099,1721278256677,-500.0,0.00021917,2]
[332502100,1721278256686,-500.0,0.00021917,2]
[332502101,1721278256695,-1305.9,0.00021917,2]
[332502102,1721278256705,-151.0,0.00021917,2]
[332502103,1721278256714,-151.0,0.00021917,2]
[332502104,1721278256724,-151.0,0.00021917,2]
[332502105,1721278256734,-501.96282304,0.00021917,2]
[332502106,1721278256742,-500.0,0.00021917,2]
[332502107,1721278256751,-151.369525,0.00021917,2]
[332502108,1721278256761,-500.0,0.00021917,2]
[332502109,1721278256770,-644.75175742,0.00021917,2]
[332502110,1721278256779,-1828.43,0.00021917,2]
[332502111,1721278256788,-151.0,0.00021917,2]
[332502112,1721278256797,-1235.49,0.00021917,2]
[332502113,1721278256806,-946.22,0.00021917,2]
[332502114,1721278256815,-918.04,0.00021917,2]
[332502115,1721278256824,-500.0,0.00021917,2]
[332502116,1721278256834,-151.0,0.00021917,2]
[332502117,1721278256843,-500.0,0.00021917,2]
[332502118,1721278256852,-529.76,0.00021917,2]
[332502119,1721278256861,-500.0,0.00021917,2]
[332502120,1721278256870,-617.32,0.00021917,2]
[332502121,1721278256879,-8197.53,0.00021917,2]
[332502122,1721278256889,-500.0,0.00021917,2]
[332502123,1721278256898,-500.0,0.00021917,2]
[332502124,1721278256907,-1390.05,0.00021917,2]
[332502125,1721278256916,-500.0,0.00021917,2]
[332502126,1721278256925,-500.0,0.00021917,2]
[332502127,1721278256934,-151.0,0.00021917,2]
[332502128,1721278256943,-500.0,0.00021917,2]
[332502129,1721278256952,-500.0,0.00021917,2]
[332502130,1721278256961,-151.0,0.00021917,2]
[332502131,1721278256971,-772.27,0.00021917,2]
[332502132,1721278256980,-500.0,0.00021917,2]
[332502133,1721278256989,-500.0,0.00021917,2]
[332502134,1721278256998,-500.0,0.00021917,2]
[332502135,1721278257007,-500.0,0.00021917,2]
[332502136,1721278257016,-636.59,0.00021917,2]
[332502137,1721278257025,-500.0,0.00021917,2]
[332502138,1721278257037,-773.6,0.00021917,2]
[332502139,1721278257046,-500.0,0.00021917,2]
[332502140,1721278257055,-1000.0,0.00021917,2]
[332502141,1721278257064,-500.0,0.00021917,2]
[332502142,1721278257073,-1331.79,0.00021917,2]
[332502143,1721278257084,-1627.91,0.00021917,2]
[332502144,1721278257093,-500.0,0.00021917,2]
[332502145,1721278257102,-1293.15,0.00021917,2]
[332502146,1721278257111,-500.0,0.00021917,2]
[332502147,1721278257120,-500.0,0.00021917,2]
[332502148,1721278257130,-500.0,0.00021917,2]
[332502149,1721278257138,-877.01,0.00021917,2]
[332502150,1721278257147,-500.0,0.00021917,2]
[332502151,1721278257158,-2522.6,0.00021917,2]
[332502152,1721278257167,-500.0,0.00021917,2]
[332502153,1721278257176,-151.0,0.00021917,2]
[332502154,1721278257185,-614.97,0.00021917,2]
[332502155,1721278257194,-500.0,0.00021917,2]
[332502156,1721278257203,-500.0,0.00021917,2]
[332502157,1721278257213,-500.0,0.00021917,2]
[332502158,1721278257222,-151.0,0.00021917,2]
[332502159,1721278257231,-500.0,0.00021917,2]
[332502160,1721278257240,-500.0,0.00021917,2]
[332502161,1721278257249,-522.4,0.00021917,2]
[332502162,1721278257258,-522.4,0.00021917,2]
[332502163,1721278257267,-500.0,0.00021917,2]
[332502164,1721278257276,-522.4,0.00021917,2]
[332502165,1721278257285,-507.77950698,0.00021917,2]
[332502166,1721278257294,-500.0,0.00021917,2]
[332502167,1721278257303,-522.4,0.00021917,2]
[332502168,1721278257312,-1546.41,0.00021917,2]
[332502169,1721278257321,-522.4,0.00021917,2]
[332502170,1721278257330,-500.0,0.00021917,2]
[332502171,1721278257339,-522.4,0.00021917,2]
[332502172,1721278257348,-522.4,0.00021917,2]
[332502173,1721278257357,-522.4,0.00021917,2]
[332502174,1721278257366,-522.4,0.00021917,2]
[332502175,1721278257376,-522.4,0.00021917,2]
[332502176,1721278257385,-832.04,0.00021917,2]
[332502177,1721278257395,-522.4,0.00021917,2]
[332502178,1721278257404,-522.4,0.00021917,2]
[332502179,1721278257413,-500.0,0.00021917,2]
[332502180,1721278257422,-1780.82,0.00021917,2]
[332502181,1721278257431,-522.4,0.00021917,2]
[332502182,1721278257440,-884.93,0.00021917,2]
[332502183,1721278257449,-522.4,0.00021917,2]
[332502184,1721278257459,-500.0,0.00021917,2]
[332502185,1721278257468,-522.4,0.00021917,2]
[332502186,1721278257478,-500.0,0.00021917,2]
[332502187,1721278257487,-522.4,0.00021917,2]
[332502188,1721278257496,-522.4,0.00021917,2]
[332502189,1721278257505,-500.0,0.00021917,2]
[332502190,1721278257514,-707.05,0.00021917,2]
[332502191,1721278257523,-522.4,0.00021917,2]
[332502192,1721278257533,-500.0,0.00021917,2]
[332502193,1721278257542,-522.4,0.00021917,2]
[332502194,1721278257551,-522.4,0.00021917,2]
[332502195,1721278257561,-1691.33,0.00021917,2]
[332502196,1721278257570,-522.4,0.00021917,2]
[332502197,1721278257581,-151.0,0.00021917,2]
[332502198,1721278257590,-522.4,0.00021917,2]
[332502199,1721278257599,-823.65,0.00021917,2]
[332502200,1721278257609,-522.4,0.00021917,2]
[332502201,1721278257618,-500.0,0.00021917,2]
[332502202,1721278257627,-522.41826389,0.00021917,2]
[332502203,1721278257636,-805.79,0.00021917,2]
[332502204,1721278257645,-511.63668866,0.00021917,2]
[332502205,1721278257655,-500.0,0.00021917,2]
[332502206,1721278257665,-500.0,0.00021917,2]
[332502207,1721278257674,-709.27,0.00021917,2]
[332502208,1721278257683,-500.0,0.00021917,2]
[332502209,1721278257692,-500.0,0.00021917,2]
[332502210,1721278257701,-500.0,0.00021917,2]
[332502211,1721278257711,-521.48,0.00021917,2]
[332502212,1721278257720,-771.1,0.00021917,2]
[332502213,1721278257729,-500.0,0.00021917,2]
[332502214,1721278257738,-500.0,0.00021917,2]
[332502215,1721278257748,-500.0,0.00021917,2]
[332502216,1721278257759,-501.53661158,0.00021917,2]
[332502217,1721278257771,-3003.8,0.00021917,2]
[332502218,1721278257782,-997.72,0.00021917,2]
[332502219,1721278257792,-500.0,0.00021917,2]
[332502220,1721278257803,-617.11,0.00021917,2]
[332502221,1721278257814,-500.0,0.00021917,2]
[332502222,1721278257824,-500.0,0.00021917,2]
[332502223,1721278257834,-512.77452365,0.00021917,2]
[332502224,1721278257842,-1220.75,0.00021917,2]
[332502225,1721278257851,-2547.74,0.00021917,2]
[332502226,1721278257861,-207.8880131,0.00021917,2]
[332502227,1721278257871,-500.0,0.00021917,2]
[332502228,1721278257881,-500.0,0.00021917,2]
[332502229,1721278257891,-500.0,0.00021917,2]
[332502230,1721278257901,-756.98,0.00021917,2]
[332502231,1721278257910,-8313.01,0.00021917,2]
[332502232,1721278257919,-500.0,0.00021917,2]
[332502233,1721278257929,-500.0,0.00021917,2]
[332502234,1721278257939,-500.0,0.00021917,2]
[332502235,1721278257951,-526.88,0.00021917,2]
[332502236,1721278257962,-372.031596,0.00021917,2]
[332502237,1721278257971,-151.0,0.00021917,2]
[332502238,1721278257981,-500.0,0.00021917,2]
[332502239,1721278257991,-557.85,0.00021917,2]
[332502240,1721278258000,-500.0,0.00021917,2]
[332502241,1721278258010,-500.0,0.00021917,2]
[332502242,1721278258019,-500.0,0.00021917,2]
[332502243,1721278258030,-500.0,0.00021917,2]
[332502244,1721278258043,-500.0,0.00021917,2]
[332502245,1721278258054,-500.0,0.00021917,2]
[332502246,1721278258064,-519.59008382,0.00021917,2]
[332502247,1721278258075,-372.031596,0.00021917,2]
[332502248,1721278258086,-151.0,0.00021917,2]
[332502249,1721278258095,-500.0,0.00021917,2]
[332502250,1721278258104,-500.0,0.00021917,2]
[332502251,1721278258116,-500.0,0.00021917,2]
[332502252,1721278258124,-2903.62,0.00021917,2]
[332502253,1721278258133,-500.0,0.00021917,2]
[332502254,1721278258141,-1310.82,0.00021917,2]
[332502255,1721278258149,-1227.17,0.00021917,2]
[332502256,1721278258156,-500.0,0.00021917,2]
[332502257,1721278258164,-500.0,0.00021917,2]
[332502258,1721278258172,-500.0,0.00021917,2]
[332502259,1721278258181,-500.0,0.00021917,2]
[332502260,1721278258190,-500.0,0.00021917,2]
[332502261,1721278258199,-500.0,0.00021917,2]
[332502262,1721278258208,-1313.57,0.00021917,2]
[332502263,1721278258218,-849.08,0.00021917,2]
[332502264,1721278258227,-151.0,0.00021917,2]
[332502265,1721278258237,-500.0,0.00021917,2]
[332502266,1721278258246,-500.0,0.00021917,2]
[332502267,1721278258255,-507.76836598,0.00021917,2]
[332502268,1721278258266,-924.97,0.00021917,2]
[332502269,1721278258275,-500.0,0.00021917,2]
[332502270,1721278258285,-500.0,0.00021917,2]
[332502271,1721278258294,-277.16193575,0.00021917,2]
[332502272,1721278258304,-500.0,0.00021917,2]
[332502273,1721278258314,-241.47129829,0.00021917,2]
[332502274,1721278258324,-500.0,0.00021917,2]
[332502275,1721278258335,-615.96,0.00021917,2]
[332502276,1721278258344,-724.44,0.00021917,2]
[332502277,1721278258352,-463.42881313,0.00021917,2]
[332502278,1721278258362,-518.96,0.00021917,2]
[332502279,1721278258371,-523.83,0.00021917,2]
[332502280,1721278258380,-3893.82,0.00021917,2]
[332502281,1721278258389,-506.78966777,0.00021917,2]
[332502282,1721278258399,-500.0,0.00021917,2]
[332502283,1721278258408,-500.0,0.00021917,2]
[332502284,1721278258417,-510.22155496,0.00021917,2]
[332502285,1721278258426,-500.0,0.00021917,2]
[332502286,1721278258435,-500.0,0.00021917,2]
[332502287,1721278258444,-500.0,0.00021917,2]
[332502288,1721278258453,-500.0,0.00021917,2]
[332502289,1721278258463,-500.0,0.00021917,2]
[332502290,1721278258472,-500.0,0.00021917,2]
[332502291,1721278258482,-500.0,0.00021917,2]
[332502292,1721278258491,-151.0,0.00021917,2]
[332502293,1721278258501,-791.679712,0.00021917,2]
[332502294,1721278258510,-4415.18,0.00021917,2]
[332502295,1721278258519,-509.93854762,0.00021917,2]
[332502296,1721278258528,-823.77,0.00021917,2]
[332502297,1721278258538,-500.0,0.00021917,2]
[332502298,1721278258547,-500.0,0.00021917,2]
[332502299,1721278258556,-500.0,0.00021917,2]
[332502300,1721278258566,-671.84,0.00021917,2]
[332502301,1721278258575,-500.0,0.00021917,2]
[332502302,1721278258585,-508.69,0.00021917,2]
[332502303,1721278258594,-500.0,0.00021917,2]
[332502304,1721278258603,-993.35,0.00021917,2]
[332502305,1721278258612,-500.89357472,0.00021917,2]
[332502306,1721278258621,-791.679712,0.00021917,2]
[332502307,1721278258631,-500.0,0.00021917,2]
[332502308,1721278258640,-745.46,0.00021917,2]
[332502309,1721278258649,-498.03444507,0.00021917,2]
[332502310,1721278258658,-500.0,0.00021917,2]
[332502311,1721278258667,-500.0,0.00021917,2]
[332502312,1721278258677,-4168.39,0.00021917,2]
[332502313,1721278258686,-500.0,0.00021917,2]
[332502314,1721278258695,-100034.70707549,0.00021917,2]
[332502315,1721278258706,-500.0,0.00021917,2]
[332502316,1721278258716,-500.0,0.00021917,2]
[332502317,1721278258726,-853.51,0.00021917,2]
[332502318,1721278258737,-503.29169455,0.00021917,2]
[332502319,1721278258746,-500.0,0.00021917,2]
[332502320,1721278258757,-517.92,0.00021917,2]
[332502321,1721278258767,-500.0,0.00021917,2]
[332502322,1721278258777,-814.39,0.00021917,2]
[332502323,1721278258786,-508.32036992,0.00021917,2]
[332502324,1721278258796,-500.0,0.00021917,2]
[332502325,1721278258805,-500.0,0.00021917,2]
[332502326,1721278258815,-500.0,0.00021917,2]
[332502327,1721278258824,-500.0,0.00021917,2]
[332502328,1721278258834,-500.0,0.00021917,2]
[332502329,1721278258844,-293.49458979,0.00021917,2]
[332502330,1721278258853,-500.0,0.00021917,2]
[332502331,1721278258862,-156.18677395,0.00021917,2]
[332502332,1721278258872,-500.0,0.00021917,2]
[332502333,1721278258881,-2537.23,0.00021917,2]
[332502334,1721278258892,-938.53,0.00021917,2]
[332502335,1721278258902,-773.67,0.00021917,2]
[332502336,1721278258912,-1130.61,0.00021917,2]
[332502337,1721278258921,-682.12,0.00021917,2]
[332502338,1721278258931,-959.84,0.00021917,2]
[332502339,1721278258940,-500.0,0.00021917,2]
[332502340,1721278258950,-1800.16,0.00021917,2]
[332502341,1721278258959,-500.0,0.00021917,2]
[332502342,1721278258969,-151.0,0.00021917,2]
[332502343,1721278258979,-1073.57,0.00021917,2]
[332502344,1721278258989,-500.0,0.00021917,2]
[332502345,1721278258999,-500.0,0.00021917,2]
[332502346,1721278259009,-500.0,0.00021917,2]
[332502347,1721278259018,-500.0,0.00021917,2]
[332502348,1721278259028,-1728.96,0.00021917,2]
[332502349,1721278259040,-500.0,0.00021917,2]
[332502350,1721278259050,-548.7,0.00021918,2]
[332502351,1721278259059,-151.0,0.00021918,2]
[332502352,1721278259069,-155.58,0.00021918,2]
[332502353,1721278259194,-167.03,0.00021918,2]
[332502354,1721278259204,-200.0,0.00021927,2]
[332502355,1721278259214,-150.0,0.00021946,2]
[332502356,1721278259223,-150.0,0.00021949,2]
[332502357,1721278259232,-151.4914134,0.0002195,2]
[332502358,1721278259242,-152.10825305,0.00021972,2]
[332502359,1721278259252,-150.0,0.00022005,2]
[332502360,1721278259261,-150.0,0.00022015,2]
[332502361,1721278259271,-150.0,0.00022027,2]
[332502362,1721278259282,-194.224702,0.00022033,2]
[332502363,1721278259292,-187.565738,0.00022033,2]
[332502364,1721278259301,-174.825655,0.00022033,2]
[332502365,1721278259311,-185.109517,0.00022033,2]
[332502366,1721278259322,-174.825656,0.00022033,2]
[332502367,1721278259333,-185.750658,0.00022033,2]
[332502368,1721278259342,-162.328011,0.00022033,2]
[332502369,1721278259352,-2611.973234,0.00022033,2]
[332502370,1721278259362,-2246.026599,0.00022033,2]
[332502371,1721278259371,-4672.103028,0.00022033,2]
[332502372,1721278259381,-219.64765,0.00022033,2]
[332502373,1721278259391,-150.926263,0.00022033,2]
[332502374,1721278259400,-219.64765,0.00022033,2]
[332502375,1721278259410,-150.926264,0.00022033,2]
[332502376,1721278259419,-178.939199,0.00022033,2]
[332502377,1721278259429,-658.942952,0.00022033,2]
[332502378,1721278259438,-452.778792,0.00022033,2]
[332502379,1721278259448,-150.0,0.00022042,2]
[332502380,1721278259458,-150.0,0.00022046,2]
[332502381,1721278259468,-150.0,0.00022055,2]
[332502382,1721278259478,-150.0,0.00022055,2]
[332502383,1721278259488,-150.0,0.00022063,2]
[332502384,1721278259498,-150.0,0.00022092,2]
[332502385,1721278259507,-150.0,0.00022103,2]
[332502386,1721278259517,-150.0,0.00022129,2]
[332502387,1721278259527,-150.0,0.0002213,2]
[332502388,1721278259536,-160.2086878,0.00022179,2]
[332502389,1721278259546,-200.0,0.00022179,2]
[332502390,1721278259555,-200.0,0.00022179,2]
[332502391,1721278259565,-420.1531607,0.00022191,2]
[332502392,1721278259575,-506.89004263,0.00022191,2]
[332502393,1721278259586,-484.04981705,0.00022191,2]
[332502394,1721278259595,-500.0,0.00022191,2]
[332502395,1721278259604,-553.00731762,0.00022191,2]
[332502396,1721278259614,-198.37142169,0.00022191,2]
[332502397,1721278259623,-660.98,0.00022191,2]
[332502398,1721278259632,-500.0,0.00022191,2]
[332502399,1721278259641,-500.0,0.00022191,2]
[332502400,1721278259651,-168.6282995,0.00022191,2]
[332502401,1721278259661,-563.88,0.00022191,2]
[332502402,1721278259671,-509.51148281,0.00022191,2]
[332502403,1721278259680,-500.0,0.00022191,2]
[332502404,1721278259690,-671.28,0.00022191,2]
[332502405,1721278259700,-500.0,0.00022191,2]
[332502406,1721278259709,-500.0,0.00022191,2]
[332502407,1721278259719,-500.0,0.00022191,2]
[332502408,1721278259728,-638.74521755,0.00022191,2]
[332502409,1721278259737,-500.0,0.00022191,2]
[332502410,1721278259747,-500.0,0.00022191,2]
[332502411,1721278259756,-500.0,0.00022191,2]
[332502412,1721278259766,-500.0,0.00022191,2]
[332502413,1721278259776,-175.59743564,0.00022191,2]
[332502414,1721278259786,-1004.82,0.00022191,2]
[332502415,1721278259795,-1395.21,0.00022191,2]
[332502416,1721278259804,-615.75,0.00022191,2]
[332502417,1721278259814,-500.0,0.00022191,2]
[332502418,1721278259823,-500.0,0.00022191,2]
[332502419,1721278259835,-500.0,0.00022191,2]
[332502420,1721278259845,-500.0,0.00022191,2]
[332502421,1721278259854,-500.0,0.00022191,2]
[332502422,1721278259864,-500.0,0.00022191,2]
[332502423,1721278259873,-500.0,0.00022191,2]
[332502424,1721278259883,-500.0,0.00022191,2]
[332502425,1721278259893,-500.0,0.00022191,2]
[332502426,1721278259902,-500.0,0.00022191,2]
[332502427,1721278259913,-922.3,0.00022191,2]
[332502428,1721278259924,-500.0,0.00022191,2]
[332502429,1721278259935,-500.0,0.00022191,2]
[332502430,1721278259946,-500.0,0.00022191,2]
[332502431,1721278259955,-500.0,0.00022191,2]
[332502432,1721278259965,-500.0,0.00022191,2]
[332502433,1721278259975,-649.06470048,0.00022191,2]
[332502434,1721278259985,-1100.58,0.00022191,2]
[332502435,1721278259995,-500.0,0.00022191,2]
[332502436,1721278260004,-343.88267927,0.00022191,2]
[332502437,1721278260014,-816.86,0.00022191,2]
[332502438,1721278260023,-500.0,0.00022191,2]
[332502439,1721278260033,-500.0,0.00022191,2]